Cogmind - Beta 13 @@@ ROGUE MODE // 2024.07.16 @ 10:37:59 Player: Wulphy Result: Destroyed by G-50 Soldier with Heavy Laser Performance ------------- Evolutions (2) 1000 Regions Visited (5) 1000 Robots Destroyed (19) 95 Value Destroyed (394) 394 Prototype IDs (23) 460 Alien Tech Used (0) 0 Bonus (-818) -818 TOTAL SCORE: 2131 Bonus ------- Follower Combat Kills 120 Aligned with FarCom 300 Friendly Fire -1238 Cogmind --------- Core Integrity 0/550 Matter 242/300 Energy 125/125 System Corruption 0% Temperature Cool (9) Movement Treading (240) Ox1 Location -8/Materials Parts ------- > --- POWER (1) -------- Light Ion Engine > --- PROPULSION (3) --- Light Treads Light Treads > --- UTILITY (5) ------ High-capacity Storage Unit Targeting Computer > --- WEAPON (2) ------- (None) > --- INVENTORY (20) --- Nuclear Core Compact Wheel Large Matter Pod (150) Experimental Sensor Array Chronowheel Firepult AWS/Autocannon Mining Laser Plasma Cutter Peak State ------------ > --- POWER ------------ Ion Engine > --- PROPULSION ------- Wheel Wheel Wheel > --- UTILITY ---------- Improved Heat Sink High-capacity Storage Unit Structural Scanner Seismic Detector Targeting Computer > --- WEAPON ----------- Assault Rifle Assault Rifle > --- INVENTORY -------- Ion Engine Light Ion Engine Nuclear Core Light Treads Light Treads Compact Wheel Large Matter Pod Experimental Sensor Array Chronowheel Particle Cannon Particle Cannon Firepult AWS/Autocannon Grenade Launcher Mining Laser Plasma Cutter [Rating: 21] Favorites ----------- Power Light Ion Engine Engine Light Ion Engine Propulsion Wheel Treads Light Treads Leg Aluminum Leg Wheel Wheel Utility Seismic Detector Device Seismic Detector Storage High-capacity Storage Unit Processor Targeting Computer Weapon Assault Rifle Energy Cannon Particle Cannon Ballistic Gun Assault Rifle Launcher Grenade Launcher Special Weapon Mining Laser Build | -11 -10 -10 -10 -9 -8 ------- Run | Yrd Mat Min Exi Min Mat Slots Evolved 4 | . . . . . 4 Power . | . . . . . . Propulsion 1 | . . . . . 1 Utility 3 | . . . . . 3 Weapon . | . . . . . . Parts Attached 39 | 8 5 9 2 . 15 Power 4 | 1 . 1 . . 2 Engine 4 | 1 . 1 . . 2 Core . | . . . . . . Reactor . | . . . . . . Propulsion 13 | 3 . 5 . . 5 Treads 4 | . . 2 . . 2 Leg 2 | . . . . . 2 Wheel 7 | 3 . 3 . . 1 Hover . | . . . . . . Flight . | . . . . . . Utility 9 | 2 3 1 . . 3 Device 4 | 1 . 1 . . 2 Storage 4 | 1 3 . . . . Processor 1 | . . . . . 1 Hackware . | . . . . . . Protection . | . . . . . . Artifact . | . . . . . . Weapon 13 | 2 2 2 2 . 5 Energy Gun . | . . . . . . Energy Cannon 2 | . . . . . 2 Ballistic Gun 6 | 2 1 1 1 . 1 Ballistic Cannon . | . . . . . . Launcher 1 | . . . . . 1 Special Weapon 4 | . 1 1 1 . 1 Impact Weapon . | . . . . . . Slashing Weapon . | . . . . . . Piercing Weapon . | . . . . . . Special Melee Weapon . | . . . . . . Unidentified Prototypes . | . . . . . . Parts Lost 15 | . . . . . 15 Power 2 | . . . . . 2 Propulsion 5 | . . . . . 5 Utility 3 | . . . . . 3 Weapon 5 | . . . . . 5 Highest Loss Streak 15 | . . . . . 15 To Critical Strikes . | . . . . . . Average Slot Usage (%) 97 | . 100 99 100 100 81 Engine 13 | . 14 14 14 14 8 Wheel 26 | . 28 26 28 28 22 Device 14 | . 14 13 14 14 21 Storage 13 | . 14 14 14 14 9 Ballistic Gun 25 | . 26 26 27 28 13 Special Weapon 1 | . 1 1 1 . 1 Naked Turns . | . . . . . . Heaviest Build 52 | 13 48 50 50 50 52 Greatest Support 40 | 26 20 20 20 20 40 Greatest Overweight (x) 4 | . 2 2 2 2 4 Average Overweight (x) 1 | . . 2 2 2 1 Largest Inventory Capacity 20 | 8 20 20 20 20 20 Average Capacity 18 | 7 12 20 20 20 20 Most Carried 20 | 8 16 20 20 20 19 Average Carried 17 | 4 9 18 19 20 17 Final Capacity 20 | 8 20 20 20 20 20 Final Carried 20 | 8 15 20 20 20 12 Class Distribution -------------------- 91% | Mutant 8% | Scavenger-Mutant Dominant Class ---------------- Mutant | -10/Materials Mutant | -10/Mines Mutant | -10/Exiles Mutant | -9/Mines Scavenger-Mutant | -8/Materials Resources | -11 -10 -10 -10 -9 -8 ----------- Run | Yrd Mat Min Exi Min Mat Matter Collected 769 | 304 93 279 20 . 73 Remotely . | . . . . . . Salvage Created 610 | 126 172 190 . . 122 Parts 40 | 8 12 14 . . 6 Haulers Intercepted . | . . . . . . Recyclers Shooed 2 | 1 . . . . 1 Parts Field Recycled . | . . . . . . Retrieved Matter . | . . . . . . Parts Self-Destructed . | . . . . . . Prevented . | . . . . . . Kills | -11 -10 -10 -10 -9 -8 ------- Run | Yrd Mat Min Exi Min Mat Combat Hostiles Destroyed 13 | . 4 6 . . 3 Guns 12 | . 4 6 . . 2 AOE 1 | . . . . . 1 Classes Destroyed 7 | 2 2 2 . . 1 Worker 1 | . . 1 . . . Builder 1 | . 1 . . . . Tunneler 2 | 2 . . . . . Recycler 1 | 1 . . . . . Swarmer 6 | . . 6 . . . Grunt 6 | . 4 . . . 2 Hunter 1 | . . . . . 1 Best Kill Streak 5 | 3 5 4 . . 1 Combat Bots Only 4 | . 4 4 . . 1 Max Kills in Single Turn 1 | 1 1 1 . . 1 Gunslinging . | . . . . . . Exploded 1 | . . . . . 1 Melee . | . . . . . . Uniques/NPCs Destroyed 1 | . . 1 . . . YI-UF0 (-10/Mines) Combat | -11 -10 -10 -10 -9 -8 -------- Run | Yrd Mat Min Exi Min Mat Hostile Shots Fired 167 | . 15 23 . . 129 Missed 37 | . 5 5 . . 27 Damage Taken 1916 | . 132 143 . . 1641 Core 689 | . 87 42 . . 560 Absorbed by Shields . | . . . . . . Core Remaining (%) 74 | 100 . . . 48 . Volleys Fired 71 | 4 11 32 1 . 23 Largest 2 | 2 2 2 1 . 2 Hottest 136 | 40 120 100 20 . 136 Shots Fired 117 | 8 22 56 1 . 30 Gun 98 | 8 21 51 . . 18 Cannon 8 | . . . . . 8 Launcher 2 | . . . . . 2 Special 9 | . 1 5 1 . 2 Kinetic 98 | 8 21 51 . . 18 Thermal 17 | . 1 5 1 . 10 Explosive 2 | . . . . . 2 Electromagnetic . | . . . . . . Robot Hit Streak 12 | 6 7 10 . . 12 Robot Miss Streak 6 | . 1 6 . . 1 Penetration Max . | . . . . . . Secondary Targets . | . . . . . . Shots Hit Robots 66 | 6 15 32 . . 13 Core Hits 42 | 4 10 11 . . 17 Critical Kills . | . . . . . . Critical Parts Destroyed 1 | . . . . . 1 Critical Strikes 1 | . . . . . 1 Destroy 1 | . . . . . 1 Melee Attacks . | . . . . . . Impact . | . . . . . . Slashing . | . . . . . . Piercing . | . . . . . . Sneak Attacks . | . . . . . . Combat Hostiles . | . . . . . . Follow-up Attacks . | . . . . . . Damage Inflicted 1240 | 76 181 402 . . 581 Guns 806 | 76 181 402 . . 147 Cannons . | . . . . . . Explosions 428 | . . . . . 428 Melee . | . . . . . . Ramming 6 | . . . . . 6 Kinetic 806 | 76 181 402 . . 147 Thermal . | . . . . . . Explosive 428 | . . . . . 428 Electromagnetic . | . . . . . . Impact . | . . . . . . Slashing . | . . . . . . Piercing . | . . . . . . Highest Corruption . | . . . . . . Average Corruption . | . . . . . . Corruption Purged . | . . . . . . Corruption Blocked . | . . . . . . Overload Shots . | . . . . . . Overflow Damage 1 | . . . . . 1 Projectiles . | . . . . . . Explosions 1 | . . . . . 1 Melee . | . . . . . . Knockbacks . | . . . . . . Impact . | . . . . . . Kinetic . | . . . . . . Secondary . | . . . . . . Self-Inflicted Damage 60 | . . . . . 60 Shots 2 | . . . . . 2 Rammed 5 | . . . . . 5 Targets Rammed 5 | . . . . . 5 Kicked . | . . . . . . Crushed . | . . . . . . Highest Temperature 158 | . 20 60 . . 158 Average Temperature 39 | . 8 27 . . 70 Received Heat Transfer 519 | . 69 . . . 450 Siege Activations . | . . . . . . Robots Corrupted . | . . . . . . Combat Hostiles . | . . . . . . Parts Fried . | . . . . . . Impact Corruptions . | . . . . . . Robots Melted . | . . . . . . Combat Hostiles . | . . . . . . Parts Melted . | . . . . . . Heat Transferred . | . . . . . . Parts Sabotaged . | . . . . . . Parts Stolen . | . . . . . . Parts Stripped . | . . . . . . Power Chain Reactions . | . . . . . . Alert | -11 -10 -10 -10 -9 -8 ------- Run | Yrd Mat Min Exi Min Mat Peak Influence 156 | 15 135 156 . . 65 Initial 52 | . 9 52 . . . Average 53 | 3 79 71 . . 14 Maximum Alert Level . | . . . . . . Low Security (%) 100 | 100 100 100 . 100 100 Level 1 . | . . . . . . Level 2 . | . . . . . . Level 3 . | . . . . . . Level 4 . | . . . . . . Level 5 . | . . . . . . High Security . | . . . . . . Max Security . | . . . . . . Squads Dispatched 2 | . . . . . 2 Investigation 1 | . . . . . 1 Extermination . | . . . . . . Reinforcement 1 | . . . . . 1 Assault . | . . . . . . Garrison . | . . . . . . Intercept . | . . . . . . Searches Triggered . | . . . . . . Construction Impeded 1 | . . . . . 1 Haulers Reinforced . | . . . . . . Active Scanning Responses . | . . . . . . Cargo Convoy Interrupts . | . . . . . . Stealth | -11 -10 -10 -10 -9 -8 --------- Run | Yrd Mat Min Exi Min Mat Distress Signals 2 | . 1 . . . 1 Communications Jammed . | . . . . . . Distress Signals . | . . . . . . Times Spotted 30 | . 6 11 . . 13 Peak Tracking Total 9 | . 6 3 . . 9 Tactical Retreats 2 | . . 1 . . 1 Traps | -11 -10 -10 -10 -9 -8 ------- Run | Yrd Mat Min Exi Min Mat Traps Triggered 1 | . . . . . 1 Indirectly . | . . . . . . Trap Hack Attempts . | . . . . . . Triggered . | . . . . . . Disarmed . | . . . . . . Reprogrammed . | . . . . . . Reused . | . . . . . . Traps Extracted . | . . . . . . Installed . | . . . . . . Triggered . | . . . . . . Machines | -11 -10 -10 -10 -9 -8 ---------- Run | Yrd Mat Min Exi Min Mat Machines Disabled 1 | . . . . . 1 Max in Single Turn 1 | . . . . . 1 Garrison Access 1 | . . . . . 1 Machines Repaired . | . . . . . . Machines Dismantled . | . . . . . . Machines Sabotaged . | . . . . . . Overloaded Fab Kills . | . . . . . . Hacking | -11 -10 -10 -10 -9 -8 --------- Run | Yrd Mat Min Exi Min Mat Machines Accessed 4 | . . . 3 . 1 Terminals . | . . . . . . Fabricators . | . . . . . . Repair Stations . | . . . . . . Recycling Units . | . . . . . . Scanalyzers . | . . . . . . Garrison Access 1 | . . . . . 1 Total Hacks 26 | . . . 25 . 1 Successful 26 | . . . 25 . 1 Failed . | . . . . . . Catastrophic . | . . . . . . Database Lockouts . | . . . . . . Manual 1 | . . . 1 . . Terminals . | . . . . . . Fabricators . | . . . . . . Repair Stations . | . . . . . . Recycling Units . | . . . . . . Scanalyzers . | . . . . . . Garrison Access 1 | . . . . . 1 Terminal Hacks 25 | . . . 25 . . Record 24 | . . . 24 . . Derelict Proto ID Bank 1 | . . . 1 . . Fabricator Hacks . | . . . . . . Repair Station Hacks . | . . . . . . Recycling Unit Hacks . | . . . . . . Scanalyzer . | . . . . . . Garrison Access Hacks 1 | . . . . . 1 Seal Access 1 | . . . . . 1 Unauthorized Hacks . | . . . . . . Terminals . | . . . . . . Fabricators . | . . . . . . Repair Stations . | . . . . . . Recycling Units . | . . . . . . Scanalyzers . | . . . . . . Garrison Access . | . . . . . . Data Cores Recovered . | . . . . . . Used . | . . . . . . Hacking Detections . | . . . . . . Full Trace Events . | . . . . . . Feedback Events . | . . . . . . Feedback Blocked . | . . . . . . Robot Schematics Acquired . | . . . . . . Robots Built . | . . . . . . Authchips . | . . . . . . Time . | . . . . . . Total Robot Build Rating . | . . . . . . Part Schematics Acquired . | . . . . . . Parts Built . | . . . . . . Authchips . | . . . . . . Time . | . . . . . . Total Part Build Rating . | . . . . . . Parts Repaired . | . . . . . . Time . | . . . . . . Parts Recycled . | . . . . . . Recycled Matter . | . . . . . . Retrieved Matter . | . . . . . . Retrieved Components . | . . . . . . Parts Scanalyzed . | . . . . . . Part Schematics Acquired . | . . . . . . Parts Damaged . | . . . . . . Bothacking | -11 -10 -10 -10 -9 -8 ------------ Run | Yrd Mat Min Exi Min Mat Used RIF Installer . | . . . . . . Robots Hacked . | . . . . . . Non-combat . | . . . . . . Combat . | . . . . . . Robot Hacks Applied . | . . . . . . Relay Couplers Released . | . . . . . . Fabnet Peak Effective % . | . . . . . . Robots Rewired . | . . . . . . Allies Hacked . | . . . . . . Hacks Repelled . | . . . . . . Allies | -11 -10 -10 -10 -9 -8 -------- Run | Yrd Mat Min Exi Min Mat Total Allies 3 | . . 3 . . . Largest Group 3 | . . 3 2 2 2 Highest-Rated Group 40 | . . 40 24 24 24 Highest-Rated Ally 16 | . . 16 16 16 16 Total Orders . | . . . . . . Ally Attacks 32 | . . 30 . . 2 Total Damage 347 | . . 333 . . 14 Kills 4 | . . 4 . . . Allies Corrupted . | . . . . . . Allies Melted . | . . . . . . Intel | -11 -10 -10 -10 -9 -8 ------- Run | Yrd Mat Min Exi Min Mat Robot Analysis Total . | . . . . . . Derelict Logs Recovered 4 | . . 3 . 1 . Drone Launches . | . . . . . . Drone Recoveries . | . . . . . . Exploration | -11 -10 -10 -10 -9 -8 ------------- Run | Yrd Mat Min Exi Min Mat Turns Passed 2266 | 82 195 1002 561 165 261 Spaces Moved 1692 | 57 140 714 494 148 139 Core 5 | 5 . . . . . Treads 4 | . . . . . 4 Legs 1 | . . . . . 1 Wheels 1682 | 52 140 714 494 148 134 Hover . | . . . . . . Flight . | . . . . . . Fastest Speed 50 | 50 80 110 110 110 95 Average Speed 106 | 86 91 110 110 110 101 Slowest Speed 330 | 100 110 110 110 110 330 Overloaded Moves . | . . . . . . Propulsion Burnouts . | . . . . . . Robots Hopped . | . . . . . . Cave-ins Triggered 1 | . . . . . 1 Exploration Rate (%) 44 | 4 23 98 78 46 18 Regions Visited 5 Branch Regions 3 Pre-discovered Areas 3 | . . 2 1 . . Known Exits Taken 1 | . . . . 1 . Unknown Exits Taken 4 | 1 1 1 1 . . Scrap Searched 2 | . . 1 . 1 . Spaces Dug 2 | . 1 . . . 1 Terrain Destroyed 20 | . 1 1 . . 18 Melee . | . . . . . . Projectile 3 | . 1 1 . . 1 AOE 17 | . . . . . 17 Terrain Rammed . | . . . . . . Walls Destroyed . | . . . . . . Machines Disabled . | . . . . . . Actions | -11 -10 -10 -10 -9 -8 --------- Run | Yrd Mat Min Exi Min Mat Total 2004 | 78 183 865 511 150 217 Wait 156 | . 14 99 6 3 34 Move 1687 | 56 139 713 493 147 139 Hop . | . . . . . . Pick Up 28 | 8 9 7 3 . 1 Fast Attach 12 | 8 . . . . 4 Attach 10 | . . 1 . . 9 Detach 2 | 1 . 1 . . . Swap 17 | . 5 8 2 . 2 Drop 16 | 1 5 4 6 . . Fire 71 | 4 11 32 1 . 23 Melee . | . . . . . . Ram . | . . . . . . Kick . | . . . . . . Crush 5 | . . . . . 5 Escape Stasis . | . . . . . . Rewire . | . . . . . . Trap . | . . . . . . Miscellaneous . | . . . . . . Route ------- -11/Scrapyard -10/Materials -10/Mines (discovered 3 exits: [*Mat x2] / *Exi) -10/Exiles (discovered 2 exits: [*Min x2]) -9/Mines -8/Materials History --------- Turn | Location | Event 12 | -11/Scrapyard | Discovered new exit (range 16) 83 | -11/Scrapyard | Entered Materials 228 | -10/Materials | Discovered new exit (range 9) 278 | -10/Materials | Entered Mines 299 | -10/Mines | YI-UF0 nonchalantly dropped a Grenade Launcher on the ground 307 | -10/Mines | Build established: Mutant 398 | -10/Mines | Learned Materials terminal intel 562 | -10/Mines | Murdered YI-UF0 562 | -10/Mines | Destroyed YI-UF0 652 | -10/Mines | Discovered new exit (range 5) 667 | -10/Mines | Found a damaged Exp. Sensor Array with a note attached 669 | -10/Mines | Found Prototype Device 869 | -10/Mines | Core integrity fell below 50% 890 | -10/Mines | Discovered new exit (range 6) 1036 | -10/Mines | Learned location of Zion (-7) 1089 | -10/Mines | Assisted by bots powering up and referring to "LRC-V3" 1269 | -10/Mines | Deemed a non-threat by the Exiles lab entrance 1269 | -10/Mines | Discovered new exit (range 5) 1280 | -10/Mines | Entered Exiles 1280 | -10/Exiles | Accompanied by 2 allies 1295 | -10/Exiles | Discovered new exit (range 15) 1308 | -10/Exiles | Met 8R-AWN 1326 | -10/Exiles | Met EX-HEX 1359 | -10/Exiles | Met EX-BIN 1435 | -10/Exiles | Aligned with FarCom system 1436 | -10/Exiles | Given EX-Vault access code 1461 | -10/Exiles | Opened EX-Vault 1470 | -10/Exiles | Found AWS/Autocannon 1474 | -10/Exiles | Found Firepult 1476 | -10/Exiles | Found Chronowheel 1519 | -10/Exiles | Warned to stay clear of 0b10 Research branches 1551 | -10/Exiles | Met EX-DEC 1609 | -10/Exiles | Discovered new exit (range 14) 1698 | -10/Exiles | Visited The Gauntlet 1841 | -10/Exiles | Stole three prototypes: Chronowheel, Firepult, AWS/Autocannon 1841 | -10/Exiles | Entered Mines 1841 | -9/Mines | Accompanied by 2 allies 1944 | -9/Mines | Identified exit to Materials 2006 | -9/Mines | Entered Materials 2006 | -8/Materials | Accompanied by 2 allies 2006 | -8/Materials | Evolved 4 slots: Propulsion x1, Utility x3 2007 | -8/Materials | Loaded intel: 12 terminal locations 2236 | -8/Materials | Crushed by falling debris 2237 | -8/Materials | Core integrity fell below 50% 2246 | -8/Materials | Core integrity fell below 20% 2267 | -8/Materials | Destroyed by G-50 Soldier with Heavy Laser Last Messages --------------- dispatching reinforcements to local area. 02248_ Acquired 28 matter. 02248_ Penetrated by Slug. 02248_ K-01 Serf destroyed. 02249_ Penetrated by Slug. 02250_ Slammed into U-05 Engineer. 02251_ Acquired 12 matter. 02251_ U-05 Engineer builds a Wall. 02251_ K-01 Serf collects debris. 02252_ U-05 Engineer forms the Earth. 02253_ U-05 Engineer builds a Wall. 02254_ K-01 Serf collects debris. 02255_ Slammed into K-01 Serf. 02255_ Ion Engine destroyed. 02257_ U-05 Engineer builds a Wall. 02258_ Aluminum Leg destroyed. 02259_ U-05 Engineer builds a Wall. 02261_ Slug penetrates Nuclear Reactor. 02263_ Slammed into G-50 Soldier. 02264_ G-47 Trooper destroyed. Map ----- +----------------------------------------------------+ | ?????## """"" # ####### ##?????????????????? | | ?????## # ##?????????????????? | | ?????## """"" # ##?????????????????? | | ?????## """"" # % ##?????????????????? | | ?????## """"" # ######### ##?????????????????? | | ???????? ## ########## ##?????????????????? | | ????????########% ###?????## ##?????????????????? | | ????????########= ##??????## ##?????????????????? | | ??????????????## ##??????## ##?????????????????? | | ??????????????## ##??????## ##?????????????????? | | ?????????????? # ##??????## ##?????????????????? | | ?????????????? # ##??????## ##?????????????????? | | ?????????????? # ##??????## ##?????????????????? | | ?????????????? # ########## ####???????????????? | | ?????????????? # ########## ####???????????????? | | ?????????????? + ### ##???????????????? | | ?????????????? # ### ##???????????????? | | ?????????????? # ### ##???????????????? | | ??????????????## ### ###### #?????? | | ????????????????????## ########+###?????? | | ????????????????????## ???? | | ?????????????????T??## ???? | | ????????????????????## ???? | | ????????????????????## % ####################+???? | | ?????????????????w??## #*=*g ########## ???? | | ???????????????????? + @g%h "####?????????????? | | ???????????????????""# #=""" ####?????????????? | | ?????????????????? T"# #g""" # ###????????????? | | ???????????????????""# # """ # ###????????????? | | ???????????????????? # #*h u! # ##????????????? | | ???????????????????? # ######## ##????????????? | | ????????????????????## #####= ####?????????????? | | ????????????????????## ###########?????????????? | | ????????????????????## ##??????????????????????? | | ????????????????????## ????????????????????????? | | ????????????????????## ????????????????????????? | | ???????????????????? ????????????????????????? | | ????????????????????? T???????????????????????? | | ?????????"??????????? w ????????????????????????? | | ?????????T???????????? ????????????????????????? | | ????""???"???????????????????????????????????????? | | ????T"???????????????????????????????????????????? | | ????""?????????????????g?????????????????????????? | | ?????????????????????????????????????????????????? | | ?????????????????????????????????????????????????? | | ?????????????????????????????????????????????????? | | ?????????????????????????????????????????????????? | | ?????????????????????????????????????????????????? | | ?????????????????????????????????????????????????? | | ?????????????????????????????????????????????????? | +----------------------------------------------------+ Best States ------------- Heat Dissipation 45 Energy Generation 10 Energy Capacity 250 Matter Stores 300 Matter Capacity 300 Sight Range 16 Terrain Scan Density 10 Evasion (%) 44 Targeting Accuracy 5 Recoil Reduction 2 Item Schematics ----------------- None Robot Schematics ------------------ None Fabricated ------------ Nothing Alien Tech Used ----------------- None Achievements -------------- Collateral Damage Challenges ------------ None Game ------ Seed ChargeSiegeKit Manual? 0 Play Time 00:31:07 Cumulative 160.9 hours Start 2024.07.16 @ 10:05:17 End 2024.07.16 @ 10:37:59 Sessions 1 Manual Loads 0 Difficulty Rogue Special Mode None Game No. 33 Rogue 33 Adventurer 0 Explorer 0 Win Type - Total 3 Types 1/0/1/1/0/0/0/0/0 Lore% 61 Gallery% 61 Achievement% 57 Wizard Run 0 Options --------- Layout 2 ASCII 0 Keyboard 1 Movement Vi Keybinds 1 Fullscreen 1 Font 24/Tamsyn Map View 50x44 Zoom Use 0% Tactical HUD 1 Map Filters NONE Filters NONE Steam 1 RUN: 875e7d42-18f4-4e81-8af2-479836002879